Cogmind - Beta 9.3 @@@ ROGUE MODE // 2019.12.17 @ 19:51:13 // Winter2019/RPGLIKE Player: Terminus Result: Destroyed by 8R-AWN with 8R-AWN's Boregun Performance ------------- Evolutions (1) 500 Regions Visited (5) 1000 Robots Destroyed (81) 405 Value Destroyed (1703) 1703 Prototype IDs (29) 580 Alien Tech Used (0) 0 Bonus (383) 383 TOTAL SCORE: 4571 Bonus ------- High Alert Combat Kills 266 Aligned with FarCom 300 Friendly Fire -183 Cogmind --------- Core Integrity 0/700 Matter 281/300 Energy 177/310 System Corruption 0% Temperature Cool (0) Movement Flying (29) Location -9/Exiles Parts ------- > --- POWER (1) -------- Fission Core > --- PROPULSION (3) --- Improved Flight Unit Improved Flight Unit Improved Flight Unit > --- UTILITY (7) ------ Improved Heat Sink Cooling System Salvage Targeting Computer Salvage Targeting Computer Advanced Targeting Computer Advanced Targeting Computer Armor Integrity Analyzer > --- WEAPON (3) ------- Advanced Beam Cannon Advanced Beam Cannon > --- INVENTORY (4) ---- Spread Laser Light EM Pulse Cannon Grenade Launcher Peak State ------------ > --- POWER ------------ Fission Core > --- PROPULSION ------- Improved Flight Unit Improved Flight Unit Improved Flight Unit > --- UTILITY ---------- Improved Heat Sink Cooling System Salvage Targeting Computer Salvage Targeting Computer Advanced Targeting Computer Advanced Targeting Computer Armor Integrity Analyzer > --- WEAPON ----------- Advanced Beam Cannon Advanced Beam Cannon Advanced Beam Cannon > --- INVENTORY -------- High-capacity Battery Spread Laser Light EM Pulse Cannon Grenade Launcher [Rating: 40] Favorites ----------- Power Fission Core Engine Ion Engine Power Core Fission Core Propulsion Improved Flight Unit Flight Unit Improved Flight Unit Utility Advanced Targeting Computer Device Improved Heat Sink Storage High-capacity Battery Processor Advanced Targeting Computer Weapon Advanced Beam Cannon Energy Gun Medium Laser Energy Cannon Advanced Beam Cannon Ballistic Gun Assault Rifle Launcher Grenade Launcher Build | -11 -10 -10 -9 -9 -9 ------- Run | Scr Mat Min Mat Min Exi Slots Evolved 10 | 4 1 1 3 1 . Power . | . . . . . . Propulsion 2 | 1 . . 1 . . Utility 6 | 2 1 . 2 1 . Weapon 2 | 1 . 1 . . . Parts Attached 43 | 3 12 4 17 3 4 Power 2 | 1 . 1 . . . Engine 1 | 1 . . . . . Core 1 | . . 1 . . . Reactor . | . . . . . . Propulsion 6 | . 2 . 4 . . Treads . | . . . . . . Leg . | . . . . . . Wheel . | . . . . . . Hover . | . . . . . . Flight 6 | . 2 . 4 . . Utility 13 | . 5 1 4 3 . Device 6 | . 4 . 2 . . Storage 1 | . . . . 1 . Processor 6 | . 1 1 2 2 . Hackware . | . . . . . . Protection . | . . . . . . Artifact . | . . . . . . Weapon 22 | 2 5 2 9 . 4 Energy Gun 8 | 1 2 . 3 . 2 Energy Cannon 8 | . 1 1 4 . 2 Ballistic Gun 2 | 1 1 . . . . Ballistic Cannon . | . . . . . . Launcher 4 | . 1 1 2 . . Special Weapon . | . . . . . . Impact Weapon . | . . . . . . Slashing Weapon . | . . . . . . Piercing Weapon . | . . . . . . Special Melee Weapon . | . . . . . . Unidentified Prototypes 1 | . . . 1 . . Parts Lost 1 | . . . . . 1 Power . | . . . . . . Propulsion . | . . . . . . Utility . | . . . . . . Weapon 1 | . . . . . 1 Highest Loss Streak 1 | . . . . . 1 Average Slot Usage (%) 92 | . 82 92 95 94 98 Engine 3 | . 11 6 . . . Core 5 | . . 4 7 7 7 Flight 21 | . 18 22 23 22 21 Device 17 | . 20 22 15 14 14 Processor 21 | . 6 15 24 27 35 Energy Gun 6 | . 15 11 4 . . Energy Cannon 15 | . 5 8 17 22 19 Naked Turns . | . . . . . . Heaviest Build 25 | 9 12 17 25 25 25 Greatest Support 28 | 13 18 18 28 28 28 Greatest Overweight (x) . | . . . . . . Average Overweight (x) . | . . . . . . Largest Inventory Capacity 4 | 1 1 1 4 4 4 Average Capacity 2 | 1 1 1 2 4 4 Most Carried 4 | . 1 1 3 4 4 Average Carried 2 | . . 1 2 3 3 Final Capacity 4 | 1 1 1 4 4 4 Final Carried 4 | . 1 1 3 4 3 Class Distribution -------------------- 51% | Sprinter 33% | Scavenger-Mutant 5% | Mutant 4% | Scavenger-Sprinter 3% | Scavenger-Gunner Dominant Class ---------------- Scavenger-Mutant | -10/Materials Scavenger-Mutant | -10/Mines Sprinter | -9/Materials Sprinter | -9/Mines Sprinter | -9/Exiles Resources | -11 -10 -10 -9 -9 -9 ----------- Run | Scr Mat Min Mat Min Exi Matter Collected 768 | 208 194 110 210 30 16 Remotely . | . . . . . . Salvage Created 2473 | . 574 157 1617 106 19 Parts 149 | . 29 6 100 14 . Haulers Intercepted 7 | . 1 . 6 . . Recyclers Shooed 1 | . . 1 . . . Parts Field Recycled . | . . . . . . Retrieved Matter . | . . . . . . Parts Self-Destructed . | . . . . . . Prevented . | . . . . . . Kills | -11 -10 -10 -9 -9 -9 ------- Run | Scr Mat Min Mat Min Exi Combat Hostiles Destroyed 64 | . 14 9 31 8 2 Guns 13 | . 8 3 2 . . Cannons 37 | . 4 1 22 8 2 AOE 14 | . 2 5 7 . . Classes Destroyed 12 | . 6 2 4 . . Worker 4 | . 2 . 2 . . Hauler 7 | . 1 . 6 . . Recycler 2 | . 1 . 1 . . Operator 1 | . . . 1 . . Watcher 3 | . 1 . 2 . . Swarmer 24 | . 3 1 13 7 . Grunt 18 | . 11 1 6 . . Brawler 1 | . . . 1 . . Duelist 1 | . . . 1 . . Sentry 11 | . . . 10 1 . Demolisher 1 | . . 1 . . . Assembled 8 | . . 6 . . 2 Best Kill Streak 10 | . 6 5 10 4 2 Combat Bots Only 6 | . 3 5 6 4 2 Max Kills in Single Turn 4 | . 2 2 4 1 1 Gunslinging . | . . . . . . Exploded 4 | . 2 2 4 . . Melee . | . . . . . . Uniques/NPCs Destroyed 1 | . . . . . 1 EX-BIN (-9/Exiles) Combat | -11 -10 -10 -9 -9 -9 -------- Run | Scr Mat Min Mat Min Exi Damage Taken 2220 | . 561 177 334 105 1043 Core 1786 | . 455 143 262 83 843 Absorbed by Shields . | . . . . . . Redirected to Core 1362 | . 345 105 211 70 631 Core Remaining (%) 93 | 100 . 87 . . . Volleys Fired 206 | . 56 18 75 11 46 Largest 3 | . 2 2 3 3 3 Hottest 204 | . 110 110 204 204 204 Shots Fired 497 | . 111 29 208 33 116 Gun 146 | . 82 11 49 . 4 Cannon 339 | . 28 11 155 33 112 Launcher 12 | . 1 7 4 . . Special . | . . . . . . Kinetic 14 | . 14 . . . . Thermal 451 | . 96 22 184 33 116 Explosive 12 | . 1 7 4 . . Electromagnetic 20 | . . . 20 . . Robot Hit Streak 41 | . 14 9 24 8 41 Robot Miss Streak 6 | . 6 2 4 3 1 Penetration Max . | . . . . . . Secondary Targets . | . . . . . . Shots Hit Robots 332 | . 68 17 123 15 109 Core Hits 135 | . 32 17 49 8 29 Critical Hits 24 | . . . 6 2 16 Critical Kills 5 | . . . 2 2 1 Critical Parts Destroyed 8 | . . . 4 . 4 Melee Attacks . | . . . . . . Impact . | . . . . . . Slashing . | . . . . . . Piercing . | . . . . . . Sneak Attacks . | . . . . . . Combat Hostiles . | . . . . . . Follow-up Attacks . | . . . . . . Damage Inflicted 4719 | . 1141 514 2424 243 397 Guns 1239 | . 647 137 455 . . Cannons 2563 | . 227 107 1589 243 397 Explosions 917 | . 267 270 380 . . Melee . | . . . . . . Ramming . | . . . . . . Kinetic 121 | . 121 . . . . Thermal 3735 | . 949 244 1902 243 397 Explosive 721 | . 71 270 380 . . Electromagnetic 142 | . . . 142 . . Impact . | . . . . . . Slashing . | . . . . . . Piercing . | . . . . . . Highest Corruption . | . . . . . . Average Corruption . | . . . . . . Corruption Purged . | . . . . . . Overload Shots . | . . . . . . Overflow Damage 76 | . . 14 43 . 19 Projectiles 64 | . . 3 42 . 19 Explosions 12 | . . 11 1 . . Melee . | . . . . . . Knockbacks . | . . . . . . Impact . | . . . . . . Kinetic . | . . . . . . Secondary . | . . . . . . Self-Inflicted Damage 65 | . 54 . 11 . . Shots 2 | . 1 . 1 . . Rammed . | . . . . . . Targets Rammed . | . . . . . . Kicked . | . . . . . . Crushed . | . . . . . . Highest Temperature 72 | . 14 . 72 6 6 Average Temperature 19 | . 8 . 21 4 6 Received Heat Transfer 318 | . 276 . 42 . . Siege Activations . | . . . . . . Robots Corrupted . | . . . . . . Combat Hostiles . | . . . . . . Parts Fried 3 | . . . 3 . . Impact Corruptions . | . . . . . . Robots Melted 1 | . . . 1 . . Combat Hostiles . | . . . . . . Parts Melted 10 | . 3 . 7 . . Heat Transferred 8355 | . 2135 629 3922 444 1225 Parts Sabotaged . | . . . . . . Parts Stolen . | . . . . . . Parts Stripped . | . . . . . . Power Chain Reactions . | . . . . . . Missiles Intercepted . | . . . . . . Alert | -11 -10 -10 -9 -9 -9 ------- Run | Scr Mat Min Mat Min Exi Peak Influence 1061 | . 451 194 1061 653 . Average Influence 438 | . 236 170 592 564 . Maximum Alert Level 3 | . 2 . 3 2 . Low Security (%) 24 | 100 36 100 9 . . Level 1 22 | . 49 . 24 . . Level 2 39 | . 14 . 33 100 . Level 3 13 | . . . 33 . . Level 4 . | . . . . . . Level 5 . | . . . . . . High Security . | . . . . . . Max Security . | . . . . . . Squads Dispatched 8 | . 5 . 3 . . Investigation 6 | . 4 . 2 . . Extermination . | . . . . . . Reinforcement 2 | . 1 . 1 . . Assault . | . . . . . . Garrison . | . . . . . . Intercept . | . . . . . . Construction Impeded . | . . . . . . Haulers Reinforced . | . . . . . . Stealth | -11 -10 -10 -9 -9 -9 --------- Run | Scr Mat Min Mat Min Exi Distress Signals 2 | . . . 2 . . Communications Jammed . | . . . . . . Distress Signals . | . . . . . . Times Spotted 96 | . 21 11 48 8 8 Peak Tracking Total 9 | . 5 6 7 3 9 Tactical Retreats 2 | . 1 . 1 . . Traps | -11 -10 -10 -9 -9 -9 ------- Run | Scr Mat Min Mat Min Exi Traps Triggered 2 | . 1 . 1 . . Indirectly . | . . . . . . Trap Hack Attempts . | . . . . . . Triggered . | . . . . . . Disarmed . | . . . . . . Reprogrammed . | . . . . . . Reused . | . . . . . . Traps Extracted . | . . . . . . Installed . | . . . . . . Triggered . | . . . . . . Machines | -11 -10 -10 -9 -9 -9 ---------- Run | Scr Mat Min Mat Min Exi Machines Disabled 13 | . 3 . 6 2 2 Max in Single Turn 2 | . 2 . 1 2 1 Machines Sabotaged . | . . . . . . Garrisons Compromised . | . . . . . . Overloaded Fab Kills . | . . . . . . Fab Network Shutdowns . | . . . . . . Hacking | -11 -10 -10 -9 -9 -9 --------- Run | Scr Mat Min Mat Min Exi Machines Accessed 18 | . 8 . 9 . 1 Terminals 14 | . 7 . 7 . . Fabricators . | . . . . . . Repair Stations . | . . . . . . Recycling Units 3 | . 1 . 2 . . Scanalyzers . | . . . . . . Garrison Access . | . . . . . . Total Hacks 60 | . 28 . 31 . 1 Successful 34 | . 15 . 18 . 1 Failed 25 | . 12 . 13 . . Catastrophic 1 | . 1 . . . . Database Lockouts 1 | . 1 . . . . Manual 52 | . 25 . 26 . 1 Terminals 50 | . 26 . 24 . . Fabricators . | . . . . . . Repair Stations . | . . . . . . Recycling Units 9 | . 2 . 7 . . Scanalyzers . | . . . . . . Garrison Access . | . . . . . . Terminal Hacks 20 | . 9 . 10 . 1 Prototype ID Bank 10 | . 4 . 6 . . Alert Level 1 | . 1 . . . . Hauler Manifests 3 | . 1 . 2 . . Zone Layout 5 | . 3 . 2 . . EX-Prototype ID Bank 1 | . . . . . 1 Fabricator Hacks . | . . . . . . Repair Station Hacks . | . . . . . . Recycling Unit Hacks 3 | . 1 . 2 . . Retrieve Components 3 | . 1 . 2 . . Scanalyzer . | . . . . . . Garrison Access Hacks . | . . . . . . Unauthorized Hacks 28 | . 13 . 15 . . Terminals 8 | . 4 . 4 . . Botnet 8 | . 4 . 4 . . Fabricators . | . . . . . . Repair Stations . | . . . . . . Recycling Units 3 | . 1 . 2 . . Tunnel 3 | . 1 . 2 . . Scanalyzers . | . . . . . . Garrison Access . | . . . . . . Data Cores Recovered . | . . . . . . Used . | . . . . . . Hacking Detections 14 | . 7 . 7 . . Full Trace Events 3 | . 2 . 1 . . Feedback Events . | . . . . . . Feedback Blocked . | . . . . . . Robot Schematics Acquired . | . . . . . . Robots Built . | . . . . . . Matter . | . . . . . . Time . | . . . . . . Total Robot Build Rating . | . . . . . . Part Schematics Acquired . | . . . . . . Parts Built . | . . . . . . Matter . | . . . . . . Time . | . . . . . . Total Part Build Rating . | . . . . . . Parts Repaired . | . . . . . . Time . | . . . . . . Parts Recycled . | . . . . . . Recycled Matter . | . . . . . . Retrieved Matter . | . . . . . . Retrieved Components 4 | . 2 . 2 . . Parts Scanalyzed . | . . . . . . Part Schematics Acquired . | . . . . . . Parts Damaged . | . . . . . . Bothacking | -11 -10 -10 -9 -9 -9 ------------ Run | Scr Mat Min Mat Min Exi Used RIF Installer . | . . . . . . Robots Hacked . | . . . . . . Non-combat . | . . . . . . Combat . | . . . . . . Robot Hacks Applied . | . . . . . . Relay Couplers Released . | . . . . . . Robots Rewired . | . . . . . . Allies Hacked . | . . . . . . Hacks Repelled . | . . . . . . Allies | -11 -10 -10 -9 -9 -9 -------- Run | Scr Mat Min Mat Min Exi Total Allies 3 | . . . . 3 . Largest Group 3 | . . . . 3 3 Highest-Rated Group 40 | . . . . 40 40 Highest-Rated Ally 16 | . . . . 16 16 Total Orders . | . . . . . . Ally Attacks 32 | . . . . . 32 Total Damage 260 | . . . . . 260 Kills 6 | . . . . . 6 Allies Corrupted . | . . . . . . Allies Melted . | . . . . . . Intel | -11 -10 -10 -9 -9 -9 ------- Run | Scr Mat Min Mat Min Exi Robot Analysis Total . | . . . . . . Derelict Logs Recovered 3 | . . 2 . 1 . Drone Launches . | . . . . . . Drone Recoveries . | . . . . . . Exploration | -11 -10 -10 -9 -9 -9 ------------- Run | Scr Mat Min Mat Min Exi Turns Passed 1989 | 20 466 180 672 386 265 Spaces Moved 3026 | 30 568 274 1121 854 179 Core 121 | 30 91 . . . . Treads . | . . . . . . Legs . | . . . . . . Wheels . | . . . . . . Hover . | . . . . . . Flight 2905 | . 477 274 1121 854 179 Fastest Speed 29 | 50 37 37 29 29 29 Average Speed 32 | 50 39 37 30 29 29 Slowest Speed 50 | 50 50 37 37 29 29 Overloaded Moves . | . . . . . . Propulsion Burnouts . | . . . . . . Robots Hopped 22 | . 4 . 9 9 . Cave-ins Triggered . | . . . . . . Exploration Rate (%) 66 | 4 90 64 97 99 42 Regions Visited 5 Branch Regions 3 Pre-discovered Areas 3 | . 1 . 2 . . Known Exits Taken 1 | . . . 1 . . Unknown Exits Taken 4 | 1 1 1 . 1 . Scrap Searched 3 | . . 2 . 1 . Spaces Dug 10 | . 4 6 . . . Terrain Destroyed 77 | . 29 36 12 . . Melee . | . . . . . . Projectile . | . . . . . . AOE 77 | . 29 36 12 . . Actions | -11 -10 -10 -9 -9 -9 --------- Run | Scr Mat Min Mat Min Exi Total 3580 | 32 694 321 1279 957 297 Wait 249 | . 32 21 44 91 61 Move 2977 | 29 559 273 1102 835 179 Hop 22 | . 4 . 9 9 . Pick Up 6 | . 1 . 3 2 . Fast Attach 24 | 3 7 2 10 2 . Attach 1 | . . . . 1 . Detach 2 | . . . 1 1 . Swap 18 | . 5 2 7 . 4 Drop 18 | . 5 1 10 1 1 Fire 206 | . 56 18 75 11 46 Melee . | . . . . . . Ram . | . . . . . . Kick . | . . . . . . Crush . | . . . . . . Escape Stasis . | . . . . . . Rewire . | . . . . . . Trap . | . . . . . . Miscellaneous 57 | . 25 4 18 4 6 Route ------- -11/Scrapyard -10/Materials (discovered 4 exits: *Mat x3 / [*Min]) -10/Mines -9/Materials (discovered 4 exits: [*Mat x3] / *Min) -9/Mines (discovered 3 exits: [*Mat x2] / *Exi) -9/Exiles History --------- Turn | Location | Event 1 | -11/Scrapyard | Upgraded with Propulsion slot (x1) 1 | -11/Scrapyard | Upgraded with Utility slot (x2) 1 | -11/Scrapyard | Upgraded with Weapon slot (x1) 12 | -11/Scrapyard | Discovered new exit (range 15) 21 | -11/Scrapyard | Entered Materials 105 | -10/Materials | Discovered new exit (range 4) 199 | -10/Materials | Discovered new exit (range 9) 257 | -10/Materials | Discovered new exit (range 8) 325 | -10/Materials | Central database locked down 335 | -10/Materials | Reached level 2 380 | -10/Materials | Discovered new exit (range 16) 391 | -10/Materials | Upgraded with Utility slot (x1) 421 | -10/Materials | Build established: Scavenger-Mutant 487 | -10/Materials | Entered Mines 488 | -10/Mines | Assembled infested the area 493 | -10/Mines | Assisted by a Guerilla fighting off Assembled 526 | -10/Mines | Learned Materials emergency access door positions 600 | -10/Mines | Reached level 3 659 | -10/Mines | Discovered new exit (range 15) 663 | -10/Mines | Upgraded with Weapon slot (x1) 665 | -10/Mines | Learned 4 Materials zone layouts 667 | -10/Mines | Entered Materials 668 | -9/Materials | Identified exit to Mines 669 | -9/Materials | Reached level 4 669 | -9/Materials | Upgraded with Propulsion slot (x1) 669 | -9/Materials | Upgraded with Utility slot (x1) 869 | -9/Materials | Reached level 5 1044 | -9/Materials | Discovered new exit (range 8) 1073 | -9/Materials | Reached level 6 1148 | -9/Materials | Upgraded with Utility slot (x1) 1205 | -9/Materials | Discovered new exit (range 11) 1206 | -9/Materials | Reached level 7 1263 | -9/Materials | Build established: Sprinter 1287 | -9/Materials | Discovered new exit (range 16) 1339 | -9/Materials | Entered Mines 1409 | -9/Mines | Learned Materials trap positions 1418 | -9/Mines | Assisted by bots powering up and referring to "LRC-V3" 1503 | -9/Mines | Deemed a non-threat by the Exiles lab entrance 1503 | -9/Mines | Discovered new exit (range 5) 1514 | -9/Mines | Reached level 8 1530 | -9/Mines | Discovered new exit (range 5) 1533 | -9/Mines | Upgraded with Utility slot (x1) 1566 | -9/Mines | Discovered new exit (range 8) 1570 | -9/Mines | Joined a pair of Derelicts in attacking an 0b10 outpost 1725 | -9/Mines | Entered Exiles 1725 | -9/Exiles | Accompanied by 3 allies 1732 | -9/Exiles | Met 8R-AWN 1737 | -9/Exiles | Met EX-HEX 1745 | -9/Exiles | Met EX-BIN 1750 | -9/Exiles | Aligned with FarCom system 1751 | -9/Exiles | Given EX-Vault access code 1758 | -9/Exiles | Opened EX-Vault 1766 | -9/Exiles | Warned to stay clear of 0b10 Research branches 1806 | -9/Exiles | Attacked by the Exiles 1812 | -9/Exiles | Allies destroyed EX-BIN 1893 | -9/Exiles | Core integrity fell below 50% 1920 | -9/Exiles | Core integrity fell below 20% 1990 | -9/Exiles | Destroyed by 8R-AWN with 8R-AWN's Boregun Last Messages --------------- 01951_ Penetrated by HV Slug. 01951_ HV Slug penetrates Wall. 01956_ HV Slug penetrates FarCom Aligner. 01956_ Penetrated by HV Slug. 01956_ HV Slug penetrates Earth. 01958_ 8R-AWN suffers critical hit. 01961_ Penetrated by HV Slug. 01961_ HV Slug penetrates Wall. 01964_ 8R-AWN suffers critical hit. 01966_ HV Slug penetrates Earth. 01970_ 8R-AWN suffers critical hit. 01971_ Penetrated by HV Slug. 01976_ HV Slug penetrates Earth. 01976_ 8R-AWN suffers critical hit. 01976_ Destroyed Prototype Processor. 01980_ HV Slug penetrates Wall. 01980_ HV Slug penetrates Earth. 01985_ Penetrated by HV Slug. 01985_ HV Slug penetrates Earth. 01990_ Penetrated by HV Slug. Map ----- +----------------------------------------------------+ | ????????????# #???####???????????????????????? | | ????????????# #??"""""#??????????????????????? | | ????????????# ## """#??????????????????????? | | ????????????# X""#??????????????????????? | | ????????????# ## """#??????????????????????? | | ??????####??# #??"""""#??????????????????????? | | ??????"""""?# #???####???????????????????????? | | ??????""" ## #??????????????????????????????? | | ????#""X" #??????????????????????????????? | | ????#" #??????????????????????????????? | | ????#" ## #??????????????????????????????? | | ????#""""""?# #?#########????????????????????? | | ??????"###??# #?#"""""""#????????????????????? | | ????????????# #?#"""""""#????????????????????? | | ????????????# #?#"""""""#????????????????????? | | ???????????## ###"" """"#????###?????????????? | | ???????????#" """"##### #?#???????????? | | ???????????#" ""; # #???????????? | | ???????????#" """;;;;;;; ##???????????? | | ???????????#" """;; ; #???????????? | | ???????????# != """ ; ; #???????????? | | ???????????#" *%[ " # #?????????? | | ???????????## =%= #??????????? | | ????????????# #??????????? | | ????????????#" #?????????? | | ????????????#" g @ ????????? | | ????????????#" " ; #????????????? | | ???????????##" % %####;;;;;;; ; #????????????? | | ??????????##"" %%#??#### # ;;;;;; #????????????? | | ?????????##"" %#?????### ##????????????? | | ????????""""" %##????????## ### #????????????? | | ???????" " "" % ##???###########?#????????????? | | ??????"" " #####"""""""""##?????????????? | | ????? " " """ """"##????????????? | | ???? "" " #????????????? | | ???? " """#????????????? | | ???? " "#???????????## | | ???? " "##?????????##" | | ???? ""###???????#" | | ????? """""" """#??????##" | | ????? ######""" "#????### | | ??????""#?????#####""" ##???# | | ??????????????????##""" ##?## | | ???????????????????#"""" ### | | ???????????????????#"" # | | ???????????????????"""" ## | | ??????????????????" ""#? | | ????????????????" #"""##? | | ????????????????? ######?? | | ???????????????? ##??????? | +----------------------------------------------------+ Best States ------------- Heat Dissipation 79 Energy Generation 18 Energy Capacity 310 Matter Stores 300 Matter Capacity 300 Sight Range 16 Terrain Scan Density 10 Evasion (%) 64 Targeting Accuracy 16 Armor Integrity Analysis 33 Salvage Targeting 2 Item Schematics ----------------- None Robot Schematics ------------------ None Fabricated ------------ Nothing Alien Tech Used ----------------- None Achievements -------------- None Challenges ------------ None RPGLIKE | -11 -10 -10 -9 -9 -9 --------- Run | Scr Mat Min Mat Min Exi Levels Raised 7 | . 1 1 4 1 . XP Earned 14280 | 3000 2157 850 6600 1430 243 XP Spent 13170 | 2970 1100 800 6300 2000 . Upgrades 21 | 9 1 1 9 1 . Propulsion Slot 2 | 1 . . 1 . . Utility Slot 6 | 2 1 . 2 1 . Weapon Slot 2 | 1 . 1 . . . Core Integrity 2 | . . . 2 . . Heat Dissipation 3 | 2 . . 1 . . Mass Support 2 | 2 . . . . . Inventory Capacity 4 | 1 . . 3 . . Protomatter Created 489 | . 188 21 188 72 20 Integrity Restored 1178 | . 538 86 339 83 132 Core 1075 | . 455 66 339 83 132 Parts 103 | . 83 20 . . . Protomatter Decayed 245 | . 2 124 72 . 47 Game ------ Seed HardcellTerrabombBay Manual? 0 Play Time 00:29:05 Cumulative 970.5 hours Start 2019.12.17 @ 19:21:39 End 2019.12.17 @ 19:51:13 Sessions 1 Manual Loads 0 Difficulty Rogue Special Mode Winter2019/RPGLIKE Game No. 309 Rogue 309 Adventurer 0 Explorer 0 Win Type - Total 70 Types 14/6/32/3/1/2/12 Lore% 97 Gallery% 95 Achievement% 82 Wizard Run 0 Options --------- ASCII 0 Keyboard 0 Movement Numpad Keybinds 0 Fullscreen 1 Font 18/SmallcapsGlow Map View 76x50 Tactical HUD 1 Map Filters NONE Filters NONE Steam 1 RUN: 9310a6a1-5579-4b67-855e-d93d5cf41467